fUST/lending_fUST_20250331
["ID","MTS","AMOUNT","RATE_DAILY","PERIOD"]
[356899146,1743402642664,-692.44,0.00019178,2]
[356899147,1743402642674,-500.0,0.00019178,2]
[356899148,1743402642683,-500.0,0.00019178,2]
[356899149,1743402642693,-500.0,0.00019178,2]
[356899150,1743402642702,-623.32,0.00019178,2]
[356899151,1743402642712,-500.0,0.00019178,2]
[356899153,1743402642721,-500.0,0.00019178,2]
[356899155,1743402642731,-1216.58,0.00019178,2]
[356899156,1743402642740,-500.0,0.00019178,2]
[356899157,1743402642750,-500.0,0.00019178,2]
[356899158,1743402642759,-500.0,0.00019178,2]
[356899159,1743402642768,-547.77908912,0.00019178,2]
[356899160,1743402642778,-500.0,0.00019178,2]
[356899161,1743402642790,-500.0,0.00019178,2]
[356899162,1743402642801,-500.0,0.00019178,2]
[356899163,1743402642810,-500.0,0.00019178,2]
[356899164,1743402642820,-500.0,0.00019178,2]
[356899165,1743402642830,-2912.2,0.00019178,2]
[356899166,1743402642842,-500.0,0.00019178,2]
[356899167,1743402642851,-1227.11,0.00019178,2]
[356899168,1743402642862,-1277.13,0.00019178,2]
[356899169,1743402642873,-9548.01,0.00019178,2]
[356899170,1743402642883,-500.0,0.00019178,2]
[356899171,1743402642892,-2789.71,0.00019178,2]
[356899172,1743402642902,-500.0,0.00019178,2]
[356899173,1743402642912,-500.0,0.00019178,2]
[356899174,1743402642921,-500.0,0.00019178,2]
[356899175,1743402642931,-1300.3,0.00019178,2]
[356899176,1743402642940,-500.0,0.00019178,2]
[356899177,1743402642951,-181.68993158,0.00019178,2]
[356899178,1743402642962,-1442.62,0.00019178,2]
[356899179,1743402642971,-1114.35,0.00019178,2]
[356899180,1743402642981,-500.0,0.00019178,2]
[356899181,1743402642990,-500.0,0.00019178,2]
[356899182,1743402642999,-500.0,0.00019178,2]
[356899183,1743402643009,-342.35288159,0.00019178,2]
[356899184,1743402643019,-500.0,0.00019178,2]
[356899185,1743402643028,-539.51,0.00019178,2]
[356899186,1743402643038,-500.0,0.00019178,2]
[356899187,1743402643048,-502.90353761,0.00019178,2]
[356899188,1743402643058,-500.0,0.00019178,2]
[356899189,1743402643067,-500.0,0.00019178,2]
[356899190,1743402643077,-500.0,0.00019178,2]
[356899191,1743402643087,-1887.26,0.00019178,2]
[356899192,1743402643097,-500.0,0.00019178,2]
[356899193,1743402643107,-500.0,0.00019178,2]
[356899194,1743402643117,-500.0,0.00019178,2]
[356899195,1743402643126,-375.94410416,0.00019178,2]
[356899196,1743402643136,-500.0,0.00019178,2]
[356899197,1743402643145,-500.0,0.00019178,2]
[356899198,1743402643155,-500.0,0.00019178,2]
[356899199,1743402643164,-500.0,0.00019178,2]
[356899200,1743402643174,-554.96730685,0.00019178,2]
[356899201,1743402643183,-500.0,0.00019178,2]
[356899202,1743402643193,-500.0,0.00019178,2]
[356899203,1743402643202,-500.0,0.00019178,2]
[356899204,1743402643211,-1746.47,0.00019178,2]
[356899205,1743402643221,-500.0,0.00019178,2]
[356899206,1743402643230,-500.0,0.00019178,2]
[356899207,1743402643240,-500.0,0.00019178,2]
[356899208,1743402643250,-655.92,0.00019178,2]
[356899209,1743402643259,-500.0,0.00019178,2]
[356899210,1743402643268,-500.0,0.00019178,2]
[356899211,1743402643278,-3799.96,0.00019178,2]
[356899212,1743402643288,-501.48877714,0.00019178,2]
[356899213,1743402643297,-500.0,0.00019178,2]
[356899214,1743402643307,-500.0,0.00019178,2]
[356899215,1743402643316,-2204.33,0.00019178,2]
[356899216,1743402643325,-3692.0,0.00019178,2]
[356899217,1743402643335,-500.0,0.00019178,2]
[356899218,1743402643346,-998.260782,0.00019329,2]
[356899219,1743402643355,-998.260782,0.00019329,2]
[356899220,1743402643367,-34465.21653739,0.00019329,2]
[356899221,1743402643376,-2110.837877,0.00019348,2]
[356899222,1743402643386,-508.408786,0.0001939,2]
[356899223,1743402643395,-6133.75930951,0.0001939,2]
[356899224,1743402643404,-646.99468445,0.00019443,2]
[356899225,1743402643413,-596.95120087,0.00019452,2]
[356899226,1743402643423,-500.0,0.00019452,2]
[356899227,1743402643432,-547.18,0.00019452,2]
[356899228,1743402643441,-562.23289414,0.00019452,2]
[356899229,1743402643450,-163.24398928,0.00019452,2]
[356899230,1743402643460,-500.0,0.00019452,2]
[356899231,1743402643470,-644.54,0.00019452,2]
[356899232,1743402643479,-500.0,0.00019452,2]
[356899233,1743402643489,-500.0,0.00019452,2]
[356899234,1743402643498,-500.0,0.00019452,2]
[356899235,1743402643507,-500.0,0.00019452,2]
[356899236,1743402643516,-500.0,0.00019452,2]
[356899237,1743402643526,-571.7,0.00019452,2]
[356899238,1743402643535,-500.0,0.00019452,2]
[356899239,1743402643544,-510.58,0.00019452,2]
[356899240,1743402643554,-500.0,0.00019452,2]
[356899241,1743402643564,-529.02,0.00019452,2]
[356899242,1743402643573,-500.0,0.00019452,2]
[356899243,1743402643583,-500.0,0.00019452,2]
[356899244,1743402643592,-582.44508673,0.00019452,2]
[356899245,1743402643602,-500.0,0.00019452,2]
[356899246,1743402643612,-200.0,0.00019452,2]
[356899247,1743402643622,-500.0,0.00019452,2]
[356899248,1743402643632,-500.0,0.00019452,2]
[356899249,1743402643642,-551.56,0.00019452,2]
[356899250,1743402643652,-500.0,0.00019452,2]
[356899251,1743402643661,-612.32,0.00019452,2]
[356899252,1743402643670,-500.0,0.00019452,2]
[356899253,1743402643679,-500.0,0.00019452,2]
[356899254,1743402643689,-500.0,0.00019452,2]
[356899255,1743402643699,-603.54,0.00019452,2]
[356899256,1743402643708,-500.0,0.00019452,2]
[356899257,1743402643718,-268.35254355,0.00019452,2]
[356899258,1743402643727,-574.99901082,0.00019452,2]
[356899259,1743402643737,-500.0,0.00019452,2]
[356899260,1743402643746,-500.0,0.00019452,2]
[356899261,1743402643755,-500.0,0.00019452,2]
[356899262,1743402643766,-500.0,0.00019452,2]
[356899263,1743402643775,-500.0,0.00019452,2]
[356899264,1743402643788,-500.0,0.00019452,2]
[356899265,1743402643797,-500.0,0.00019452,2]
[356899266,1743402643807,-500.0,0.00019452,2]
[356899267,1743402643817,-500.0,0.00019452,2]
[356899268,1743402643827,-585.59,0.00019452,2]
[356899269,1743402643837,-500.0,0.00019452,2]
[356899270,1743402643847,-500.0,0.00019452,2]
[356899271,1743402643857,-500.0,0.00019452,2]
[356899272,1743402643867,-500.0,0.00019452,2]
[356899273,1743402643876,-500.0,0.00019452,2]
[356899274,1743402643885,-500.0,0.00019452,2]
[356899275,1743402643895,-500.0,0.00019452,2]
[356899276,1743402643905,-500.0,0.00019452,2]
[356899277,1743402643914,-500.0,0.00019452,2]
[356899278,1743402643924,-500.0,0.00019452,2]
[356899279,1743402643934,-500.0,0.00019452,2]
[356899280,1743402643943,-500.0,0.00019452,2]
[356899281,1743402643953,-500.0,0.00019452,2]
[356899282,1743402643964,-500.0,0.00019452,2]
[356899283,1743402643974,-500.0,0.00019452,2]
[356899284,1743402643983,-500.0,0.00019452,2]
[356899285,1743402643992,-500.0,0.00019452,2]
[356899286,1743402644002,-500.0,0.00019452,2]
[356899287,1743402644011,-500.0,0.00019452,2]
[356899288,1743402644021,-500.0,0.00019452,2]
[356899289,1743402644031,-500.0,0.00019452,2]
[356899290,1743402644040,-574.02,0.00019452,2]
[356899291,1743402644049,-500.0,0.00019452,2]
[356899292,1743402644059,-500.0,0.00019452,2]
[356899293,1743402644068,-500.0,0.00019452,2]
[356899294,1743402644077,-500.0,0.00019452,2]
[356899295,1743402644087,-500.0,0.00019452,2]
[356899296,1743402644096,-500.0,0.00019452,2]
[356899297,1743402644106,-500.0,0.00019452,2]
[356899298,1743402644116,-1002.65,0.00019452,2]
[356899299,1743402644125,-500.0,0.00019452,2]
[356899300,1743402644135,-631.7,0.00019452,2]
[356899301,1743402644144,-500.0,0.00019452,2]
[356899302,1743402644153,-625.01,0.00019452,2]
[356899303,1743402644162,-500.0,0.00019452,2]
[356899304,1743402644172,-500.0,0.00019452,2]
[356899305,1743402644181,-500.0,0.00019452,2]
[356899306,1743402644191,-500.0,0.00019452,2]
[356899307,1743402644200,-500.0,0.00019452,2]
[356899308,1743402644210,-500.0,0.00019452,2]
[356899309,1743402644220,-500.0,0.00019452,2]
[356899310,1743402644230,-500.0,0.00019452,2]
[356899311,1743402644239,-500.0,0.00019452,2]
[356899312,1743402644249,-500.0,0.00019452,2]
[356899313,1743402644258,-722.96,0.00019452,2]
[356899314,1743402644267,-500.0,0.00019452,2]
[356899315,1743402644276,-500.0,0.00019452,2]
[356899316,1743402644286,-500.0,0.00019452,2]
[356899317,1743402644295,-500.0,0.00019452,2]
[356899318,1743402644436,-500.0,0.00019452,2]
[356899319,1743402644446,-500.0,0.00019452,2]
[356899320,1743402644456,-500.0,0.00019452,2]
[356899321,1743402644465,-500.0,0.00019452,2]
[356899322,1743402644474,-500.0,0.00019452,2]
[356899323,1743402644484,-500.0,0.00019452,2]
[356899324,1743402644493,-500.0,0.00019452,2]
[356899325,1743402644502,-500.0,0.00019452,2]
[356899326,1743402644512,-500.0,0.00019452,2]
[356899327,1743402644521,-500.0,0.00019452,2]
[356899328,1743402644530,-500.0,0.00019452,2]
[356899329,1743402644540,-500.0,0.00019452,2]
[356899330,1743402644549,-527.51,0.00019452,2]
[356899331,1743402644558,-227.21157109,0.00019452,2]
[356899332,1743402644568,-500.0,0.00019452,2]
[356899333,1743402644577,-500.0,0.00019452,2]
[356899334,1743402644586,-500.0,0.00019452,2]
[356899335,1743402644595,-670.54,0.00019452,2]
[356899336,1743402644605,-500.0,0.00019452,2]
[356899337,1743402644615,-627.34,0.00019452,2]
[356899338,1743402644625,-500.0,0.00019452,2]
[356899339,1743402644634,-500.0,0.00019452,2]
[356899340,1743402644644,-1014.31,0.00019452,2]
[356899341,1743402644653,-500.0,0.00019452,2]
[356899342,1743402644663,-500.0,0.00019452,2]
[356899343,1743402644672,-500.0,0.00019452,2]
[356899344,1743402644681,-500.0,0.00019452,2]
[356899345,1743402644691,-500.0,0.00019452,2]
[356899346,1743402644700,-1089.99,0.00019452,2]
[356899347,1743402644709,-500.0,0.00019452,2]
[356899348,1743402644718,-500.0,0.00019452,2]
[356899349,1743402644727,-500.0,0.00019452,2]
[356899350,1743402644737,-500.0,0.00019452,2]
[356899351,1743402644746,-500.0,0.00019452,2]
[356899352,1743402644755,-500.0,0.00019452,2]
[356899353,1743402644764,-500.0,0.00019452,2]
[356899354,1743402644774,-1564.43,0.00019452,2]
[356899355,1743402644786,-620.47,0.00019452,2]
[356899356,1743402644795,-500.0,0.00019452,2]
[356899357,1743402644804,-500.0,0.00019452,2]
[356899358,1743402644814,-500.0,0.00019452,2]
[356899359,1743402644823,-532.11012418,0.00019452,2]
[356899360,1743402644833,-500.0,0.00019452,2]
[356899361,1743402644842,-636.34,0.00019452,2]
[356899362,1743402644852,-500.0,0.00019452,2]
[356899363,1743402644862,-500.0,0.00019452,2]
[356899364,1743402644872,-500.0,0.00019452,2]
[356899365,1743402644882,-500.0,0.00019452,2]
[356899366,1743402644891,-500.0,0.00019452,2]
[356899367,1743402644900,-500.0,0.00019452,2]
[356899368,1743402644910,-622.61,0.00019452,2]
[356899369,1743402644919,-500.0,0.00019452,2]
[356899370,1743402644928,-584.14,0.00019452,2]
[356899371,1743402644937,-500.0,0.00019452,2]
[356899372,1743402644947,-598.58,0.00019452,2]
[356899373,1743402644956,-500.0,0.00019452,2]
[356899374,1743402644966,-212.04265145,0.00019452,2]
[356899375,1743402644976,-500.0,0.00019452,2]
[356899376,1743402644985,-500.0,0.00019452,2]
[356899377,1743402644994,-500.0,0.00019452,2]
[356899378,1743402645004,-500.0,0.00019452,2]
[356899379,1743402645013,-500.0,0.00019452,2]
[356899380,1743402645023,-500.0,0.00019452,2]
[356899381,1743402645032,-500.0,0.00019452,2]
[356899382,1743402645042,-500.0,0.00019452,2]
[356899383,1743402645051,-500.0,0.00019452,2]
[356899384,1743402645061,-500.0,0.00019452,2]
[356899385,1743402645070,-526.95859077,0.00019452,2]
[356899386,1743402645080,-500.0,0.00019452,2]
[356899387,1743402645089,-500.0,0.00019452,2]
[356899388,1743402645099,-714.91,0.00019452,2]
[356899389,1743402645108,-500.0,0.00019452,2]
[356899390,1743402645119,-500.0,0.00019452,2]
[356899391,1743402645129,-500.0,0.00019452,2]
[356899392,1743402645138,-1098.2,0.00019452,2]
[356899393,1743402645147,-501.77768974,0.00019452,2]
[356899394,1743402645157,-590.12,0.00019452,2]
[356899395,1743402645166,-533.24,0.00019452,2]
[356899396,1743402645175,-500.0,0.00019452,2]
[356899397,1743402645185,-500.0,0.00019452,2]
[356899398,1743402645194,-500.0,0.00019452,2]
[356899399,1743402645204,-500.0,0.00019452,2]
[356899400,1743402645213,-500.0,0.00019452,2]
[356899402,1743402645223,-500.0,0.00019452,2]
[356899403,1743402645232,-500.0,0.00019452,2]
[356899404,1743402645241,-500.0,0.00019452,2]
[356899405,1743402645251,-500.0,0.00019452,2]
[356899406,1743402645260,-603.12889661,0.00019452,2]
[356899407,1743402645270,-500.0,0.00019452,2]
[356899408,1743402645279,-500.0,0.00019452,2]
[356899409,1743402645288,-561.7,0.00019452,2]
[356899410,1743402645297,-500.0,0.00019452,2]
[356899411,1743402645307,-500.0,0.00019452,2]
[356899412,1743402645316,-500.0,0.00019452,2]
[356899413,1743402645326,-500.0,0.00019452,2]
[356899414,1743402645335,-516.01,0.00019452,2]
[356899415,1743402645344,-500.0,0.00019452,2]
[356899416,1743402645354,-500.0,0.00019452,2]
[356899417,1743402645363,-525.82,0.00019452,2]
[356899418,1743402645373,-500.0,0.00019452,2]
[356899419,1743402645382,-500.0,0.00019452,2]
[356899420,1743402645391,-500.0,0.00019452,2]
[356899421,1743402645400,-533.62,0.00019452,2]
[356899422,1743402645410,-500.0,0.00019452,2]
[356899423,1743402645419,-500.0,0.00019452,2]
[356899424,1743402645429,-500.0,0.00019452,2]
[356899425,1743402645438,-500.0,0.00019452,2]
[356899426,1743402645448,-500.0,0.00019452,2]
[356899427,1743402645457,-500.0,0.00019452,2]
[356899428,1743402645467,-500.0,0.00019452,2]
[356899429,1743402645476,-500.0,0.00019452,2]
[356899430,1743402645485,-500.0,0.00019452,2]
[356899432,1743402645495,-500.0,0.00019452,2]
[356899433,1743402645504,-500.0,0.00019452,2]
[356899435,1743402645513,-500.0,0.00019452,2]
[356899436,1743402645522,-500.0,0.00019452,2]
[356899437,1743402645531,-500.0,0.00019452,2]
[356899438,1743402645541,-500.0,0.00019452,2]
[356899439,1743402645550,-500.0,0.00019452,2]
[356899440,1743402645560,-500.0,0.00019452,2]
[356899441,1743402645569,-573.48,0.00019452,2]
[356899442,1743402645578,-500.0,0.00019452,2]
[356899444,1743402645588,-500.0,0.00019452,2]
[356899445,1743402645598,-500.0,0.00019452,2]
[356899447,1743402645607,-500.0,0.00019452,2]
[356899448,1743402645618,-500.0,0.00019452,2]
[356899449,1743402645628,-500.0,0.00019452,2]
[356899450,1743402645637,-500.0,0.00019452,2]
[356899451,1743402645647,-500.0,0.00019452,2]
[356899452,1743402645656,-645.44,0.00019452,2]
[356899453,1743402645666,-500.0,0.00019452,2]
[356899454,1743402645675,-527.04,0.00019452,2]
[356899455,1743402645685,-612.06,0.00019452,2]
[356899456,1743402645694,-203.34324927,0.00019452,2]
[356899457,1743402645703,-500.0,0.00019452,2]
[356899458,1743402645714,-500.0,0.00019452,2]
[356899459,1743402645724,-500.0,0.00019452,2]
[356899461,1743402645733,-533.2,0.00019452,2]
[356899462,1743402645742,-500.0,0.00019452,2]
[356899464,1743402645751,-604.01,0.00019452,2]
[356899465,1743402645761,-500.0,0.00019452,2]
[356899466,1743402645770,-998.260782,0.00019452,2]
[356899467,1743402645780,-998.260782,0.00019452,2]
[356899468,1743402645793,-500.0,0.00019452,2]
[356899469,1743402645803,-1113.67859208,0.00019452,2]
[356899470,1743402645813,-602.44,0.00019452,2]
[356899471,1743402645823,-998.260782,0.00019452,2]
[356899472,1743402645835,-500.0,0.00019452,2]
[356899473,1743402645846,-998.260782,0.00019452,2]
[356899474,1743402645855,-500.0,0.00019452,2]
[356899475,1743402645868,-500.0,0.00019452,2]
[356899476,1743402645877,-500.0,0.00019452,2]
[356899477,1743402645887,-500.0,0.00019452,2]
[356899478,1743402645896,-500.0,0.00019452,2]
[356899479,1743402645906,-500.0,0.00019452,2]
[356899480,1743402645915,-610.32,0.00019452,2]
[356899481,1743402645925,-634.88,0.00019452,2]
[356899482,1743402645934,-530.24,0.00019452,2]
[356899483,1743402645944,-500.0,0.00019452,2]
[356899484,1743402645954,-200.95209674,0.00019452,2]
[356899485,1743402645964,-500.0,0.00019452,2]
[356899486,1743402645973,-500.0,0.00019452,2]
[356899487,1743402645983,-565.66493776,0.00019452,2]
[356899488,1743402645992,-500.0,0.00019452,2]
[356899489,1743402646002,-500.0,0.00019452,2]
[356899490,1743402646011,-3018.36,0.00019452,2]
[356899491,1743402646021,-500.0,0.00019452,2]
[356899492,1743402646030,-4189.51,0.00019452,2]
[356899493,1743402646040,-500.0,0.00019452,2]
[356899494,1743402646049,-500.0,0.00019452,2]
[356899495,1743402646059,-500.0,0.00019452,2]
[356899496,1743402646068,-500.0,0.00019452,2]
[356899497,1743402646078,-500.0,0.00019452,2]
[356899498,1743402646087,-574.22,0.00019452,2]
[356899499,1743402646097,-500.0,0.00019452,2]
[356899500,1743402646106,-500.0,0.00019452,2]
[356899501,1743402646116,-500.0,0.00019452,2]
[356899502,1743402646126,-1305.58,0.00019452,2]
[356899503,1743402646135,-500.0,0.00019452,2]
[356899504,1743402646145,-500.0,0.00019452,2]
[356899505,1743402646154,-500.0,0.00019452,2]
[356899506,1743402646163,-500.0,0.00019452,2]
[356899507,1743402646173,-500.0,0.00019452,2]
[356899508,1743402646182,-500.0,0.00019452,2]
[356899509,1743402646191,-500.0,0.00019452,2]
[356899510,1743402646200,-943.5,0.00019452,2]
[356899511,1743402646210,-500.0,0.00019452,2]
[356899512,1743402646220,-2050.6,0.00019452,2]
[356899513,1743402646229,-748.78,0.00019452,2]
[356899514,1743402646238,-500.0,0.00019452,2]
[356899515,1743402646247,-396.35346434,0.00019452,2]
[356899516,1743402646257,-500.0,0.00019452,2]
[356899517,1743402646266,-500.0,0.00019452,2]
[356899518,1743402646275,-500.0,0.00019452,2]
[356899519,1743402646285,-500.0,0.00019452,2]
[356899520,1743402646294,-500.0,0.00019452,2]
[356899521,1743402646308,-545.54,0.00019452,2]
[356899522,1743402646318,-2087.99,0.00019452,2]
[356899523,1743402646327,-500.0,0.00019452,2]
[356899524,1743402646337,-169.00678832,0.00019452,2]
[356899525,1743402646346,-500.0,0.00019452,2]
[356899526,1743402646356,-500.0,0.00019452,2]
[356899527,1743402646366,-500.0,0.00019452,2]
[356899528,1743402646375,-741.56,0.00019452,2]
[356899529,1743402646385,-500.0,0.00019452,2]
[356899530,1743402646395,-6770.77,0.00019452,2]
[356899531,1743402646404,-510.64,0.00019452,2]
[356899532,1743402646413,-500.0,0.00019452,2]
[356899533,1743402646423,-500.0,0.00019452,2]
[356899534,1743402646432,-500.0,0.00019452,2]
[356899535,1743402646442,-500.0,0.00019452,2]
[356899536,1743402646451,-514.88,0.00019452,2]
[356899537,1743402646461,-500.0,0.00019452,2]
[356899538,1743402646470,-500.0,0.00019452,2]
[356899539,1743402646599,-500.0,0.00019452,2]
[356899540,1743402646610,-534.22,0.00019452,2]
[356899541,1743402646623,-500.0,0.00019452,2]
[356899542,1743402646633,-500.0,0.00019452,2]
[356899543,1743402646643,-500.0,0.00019452,2]
[356899544,1743402646653,-625.24,0.00019452,2]
[356899545,1743402646663,-500.0,0.00019452,2]
[356899546,1743402646673,-500.0,0.00019452,2]
[356899547,1743402646683,-1665.4,0.00019452,2]
[356899548,1743402646692,-500.0,0.00019452,2]
[356899549,1743402646701,-871.01,0.00019452,2]
[356899550,1743402646711,-500.0,0.00019452,2]
[356899551,1743402646720,-500.0,0.00019452,2]
[356899552,1743402646729,-1649.31,0.00019452,2]
[356899553,1743402646739,-500.0,0.00019452,2]
[356899554,1743402646749,-7095.07,0.00019452,2]
[356899555,1743402646759,-500.0,0.00019452,2]
[356899556,1743402646768,-1633.44,0.00019452,2]
[356899557,1743402646778,-500.0,0.00019452,2]
[356899558,1743402646792,-1688.19,0.00019452,2]
[356899559,1743402646802,-500.0,0.00019452,2]
[356899560,1743402646812,-500.0,0.00019452,2]
[356899561,1743402646821,-500.0,0.00019452,2]
[356899562,1743402646831,-500.0,0.00019452,2]
[356899563,1743402646840,-500.0,0.00019452,2]
[356899564,1743402646850,-517.62,0.00019452,2]
[356899565,1743402646860,-218.41,0.00019452,2]
[356899566,1743402646871,-500.0,0.00019452,2]
[356899567,1743402646881,-500.0,0.00019452,2]
[356899568,1743402646890,-920.62,0.00019452,2]
[356899569,1743402646900,-500.0,0.00019452,2]
[356899570,1743402646910,-721.78,0.00019452,2]
[356899571,1743402646920,-500.0,0.00019452,2]
[356899572,1743402646929,-500.0,0.00019452,2]
[356899573,1743402646939,-590.43248845,0.00019452,2]
[356899574,1743402646949,-500.0,0.00019452,2]
[356899575,1743402646958,-827.86,0.00019452,2]
[356899576,1743402646968,-2349.9,0.00019452,2]
[356899577,1743402646978,-2019.04,0.00019452,2]
[356899578,1743402646988,-500.0,0.00019452,2]
[356899579,1743402646997,-229.88244342,0.00019452,2]
[356899580,1743402647007,-1215.57,0.00019452,2]
[356899581,1743402647016,-500.0,0.00019452,2]
[356899582,1743402647025,-500.0,0.00019452,2]
[356899583,1743402647035,-517.24,0.00019452,2]
[356899584,1743402647044,-500.0,0.00019452,2]
[356899585,1743402647054,-500.0,0.00019452,2]
[356899586,1743402647064,-500.0,0.00019452,2]
[356899587,1743402647074,-500.0,0.00019452,2]
[356899588,1743402647084,-500.0,0.00019452,2]
[356899589,1743402647094,-500.0,0.00019452,2]
[356899590,1743402647103,-500.0,0.00019452,2]
[356899591,1743402647112,-500.0,0.00019452,2]
[356899592,1743402647124,-4307.25,0.00019452,2]
[356899593,1743402647134,-500.0,0.00019452,2]
[356899594,1743402647144,-500.0,0.00019452,2]
[356899595,1743402647153,-1020.46,0.00019452,2]
[356899596,1743402647163,-692.44,0.00019452,2]
[356899597,1743402647172,-500.0,0.00019452,2]
[356899598,1743402647182,-500.0,0.00019452,2]
[356899599,1743402647191,-500.0,0.00019452,2]
[356899600,1743402647201,-623.32,0.00019452,2]
[356899601,1743402647210,-500.0,0.00019452,2]
[356899602,1743402647220,-500.0,0.00019452,2]
[356899603,1743402647229,-1216.58,0.00019452,2]
[356899604,1743402647238,-407.07587385,0.00019452,2]
[356899605,1743402647247,-500.0,0.00019452,2]
[356899606,1743402647258,-500.0,0.00019452,2]
[356899607,1743402647268,-500.0,0.00019452,2]
[356899608,1743402647278,-500.0,0.00019452,2]
[356899609,1743402647288,-500.0,0.00019452,2]
[356899610,1743402647298,-500.0,0.00019452,2]
[356899611,1743402647308,-500.0,0.00019452,2]
[356899612,1743402647317,-2912.2,0.00019452,2]
[356899613,1743402647327,-517.55867209,0.00019452,2]
[356899614,1743402647337,-1227.11,0.00019452,2]
[356899615,1743402647347,-1277.13,0.00019452,2]
[356899616,1743402647356,-9548.01,0.00019452,2]
[356899617,1743402647367,-500.0,0.00019452,2]
[356899618,1743402647377,-2789.71,0.00019452,2]
[356899619,1743402647387,-550.74103653,0.00019452,2]
[356899620,1743402647397,-500.0,0.00019452,2]
[356899621,1743402647407,-500.0,0.00019452,2]
[356899622,1743402647417,-1300.3,0.00019452,2]
[356899623,1743402647427,-500.0,0.00019452,2]
[356899624,1743402647436,-1442.62,0.00019452,2]
[356899625,1743402647446,-1114.35,0.00019452,2]
[356899626,1743402647456,-500.0,0.00019452,2]
[356899627,1743402647465,-500.0,0.00019452,2]
[356899628,1743402647475,-500.0,0.00019452,2]
[356899629,1743402647485,-539.51,0.00019452,2]
[356899630,1743402647494,-500.0,0.00019452,2]
[356899631,1743402647504,-152.14,0.00019452,2]
[356899632,1743402647514,-500.0,0.00019452,2]
[356899633,1743402647523,-500.0,0.00019452,2]
[356899634,1743402647533,-1887.26,0.00019452,2]
[356899635,1743402647542,-500.0,0.00019452,2]
[356899636,1743402647552,-500.0,0.00019452,2]
[356899637,1743402647562,-500.0,0.00019452,2]
[356899638,1743402647571,-161.94940582,0.00019452,2]
[356899639,1743402647581,-524.58,0.00019452,2]
[356899640,1743402647591,-500.0,0.00019452,2]
[356899641,1743402647600,-500.0,0.00019452,2]
[356899642,1743402647610,-1746.47,0.00019452,2]
[356899643,1743402647619,-500.0,0.00019452,2]
[356899644,1743402647629,-247.39227907,0.00019452,2]
[356899645,1743402647639,-500.0,0.00019452,2]
[356899646,1743402647649,-655.92,0.00019452,2]
[356899647,1743402647658,-500.0,0.00019452,2]
[356899648,1743402647668,-500.0,0.00019452,2]
[356899649,1743402647678,-3799.96,0.00019452,2]
[356899650,1743402647687,-500.0,0.00019452,2]
[356899651,1743402647697,-500.0,0.00019452,2]
[356899652,1743402647706,-2204.33,0.00019452,2]
[356899653,1743402647716,-3692.0,0.00019452,2]
[356899654,1743402647725,-177.54083388,0.00019452,2]